Body,Body Name,Date,TransNo,Amount � (Excl VAT),Supplier name,Description,Expense Area,Expense Type,Expense Code,
http://opendatacommunities.org/id/london-borough-council/sutton,London Borough of Sutton,03/05/2019,1275722,12.49 , AMAZON.CO.UK MN5W28ZV4,TOYS AND EQUIPMENT,Peoples Services Directorate,Education Equipment,F009,
http://opendatacommunities.org/id/london-borough-council/sutton,London Borough of Sutton,14/05/2019,1275722,18.74 , ASDA SUPERSTORE,GROCERIES,Peoples Services Directorate,Provisions - General,F150,
http://opendatacommunities.org/id/london-borough-council/sutton,London Borough of Sutton,07/05/2019,1275722,47.30 , W M MORRISONS.COM,GROCERIES,Peoples Services Directorate,Provisions - General,F150,
http://opendatacommunities.org/id/london-borough-council/sutton,London Borough of Sutton,19/05/2019,1275722,66.46 , W M MORRISONS.COM,GROCERIES,Peoples Services Directorate,Refreshments,F155,
http://opendatacommunities.org/id/london-borough-council/sutton,London Borough of Sutton,06/05/2019,1275722,77.48 , W M MORRISONS.COM,GROCERIES,Peoples Services Directorate,Refreshments,F155,
http://opendatacommunities.org/id/london-borough-council/sutton,London Borough of Sutton,22/05/2019,1275722,1.49 , AMZNMKTPLACE,BALANCING ENTRY AMOUNt,Peoples Services Directorate,Personal Requisites,F106,
http://opendatacommunities.org/id/london-borough-council/sutton,London Borough of Sutton,20/05/2019,1275722,298.80 , WWW.MARKALLENGROUP.COM,298.80 - A520 0044 9999 - TRAINING COURSE .PNG,Peoples Services Directorate,Training - Course Fees,A520,
http://opendatacommunities.org/id/london-borough-council/sutton,London Borough of Sutton,07/05/2019,1275722,823.20 , HENRY HOWARD FINANCE P,VENDING MACHINE RENTAL,Sutton College,Equipment including Meters,D520,
http://opendatacommunities.org/id/london-borough-council/sutton,London Borough of Sutton,18/05/2019,1275722,40.00 , OYSTER AUTO-TOP UP,OYSTER CARD TOPUP,Sutton College,Staff Travelling Expenses,E130,
http://opendatacommunities.org/id/london-borough-council/sutton,London Borough of Sutton,26/04/2019,1275722,20.00 , TFL AUTOSETTLEMENT,DG OYSTER CARD AUTO TOP UP,Sutton College,Staff Travelling Expenses,E130,
http://opendatacommunities.org/id/london-borough-council/sutton,London Borough of Sutton,10/05/2019,1275722,20.00 , OYSTER AUTO-TOP UP,OYSTER CARD AUTO TOPUP,Sutton College,Staff Travelling Expenses,E130,
http://opendatacommunities.org/id/london-borough-council/sutton,London Borough of Sutton,09/05/2019,1275722,15.00 , OYSTER ONLINE,NEW OYSTER CARD FOR PRINCIPAL,Sutton College,Staff Travelling Expenses,E130,
http://opendatacommunities.org/id/london-borough-council/sutton,London Borough of Sutton,22/05/2019,1275722,8.78 , AMZNMKTPLACE,DUST EXTRACTION HOSE ADAPTOR PCK X 2,Sutton College,Education Equipment,F009,
http://opendatacommunities.org/id/london-borough-council/sutton,London Borough of Sutton,21/05/2019,1275722,9.93 , WWW.TOOLSTATION.COM,ROUTER CUTTER (TO 0235),Sutton College,Education Equipment,F009,
http://opendatacommunities.org/id/london-borough-council/sutton,London Borough of Sutton,16/05/2019,1275722,13.50 , AMAZON.CO.UK MN7LX9MF4,ADHESIVE (TO 0235),Sutton College,Education Equipment,F009,
http://opendatacommunities.org/id/london-borough-council/sutton,London Borough of Sutton,15/05/2019,1275722,21.70 , WWW.TOOLSTATION.COM,SANDING DISCS (TO 0235),Sutton College,Education Equipment,F009,
http://opendatacommunities.org/id/london-borough-council/sutton,London Borough of Sutton,15/05/2019,1275722,31.23 , SCREWFIX DIRECT,JIGSAW BLADES (TO 0235),Sutton College,Education Equipment,F009,
http://opendatacommunities.org/id/london-borough-council/sutton,London Borough of Sutton,14/05/2019,1275722,9.18 , AMAZON.CO.UK MN98K2GH4,PLYWOOD (TO 0235),Sutton College,Education Equipment,F009,
http://opendatacommunities.org/id/london-borough-council/sutton,London Borough of Sutton,14/05/2019,1275722,9.18 , AMAZON.CO.UK MN7MN6X14,PLYWOOD (TO 0235),Sutton College,Education Equipment,F009,
http://opendatacommunities.org/id/london-borough-council/sutton,London Borough of Sutton,14/05/2019,1275722,9.18 , AMAZON.CO.UK MN68K9G44,PLYWOOD (TO 0235),Sutton College,Education Equipment,F009,
http://opendatacommunities.org/id/london-borough-council/sutton,London Borough of Sutton,14/05/2019,1275722,9.18 , AMAZON.CO.UK MN6MW4XG4,PLYWOOD (TO 0235),Sutton College,Education Equipment,F009,
http://opendatacommunities.org/id/london-borough-council/sutton,London Borough of Sutton,14/05/2019,1275722,9.18 , AMAZON.CO.UK MN1M09X54,PLYWOOD (TO 0235),Sutton College,Education Equipment,F009,
http://opendatacommunities.org/id/london-borough-council/sutton,London Borough of Sutton,14/05/2019,1275722,9.18 , AMAZON.CO.UK MN4J59G24,PLYWOOD (TO 0235),Sutton College,Education Equipment,F009,
http://opendatacommunities.org/id/london-borough-council/sutton,London Borough of Sutton,10/05/2019,1275722,26.81 , AW CHAMPION LTD,HARDWOOD DOOR LIPPING,Sutton College,Education Equipment,F009,
http://opendatacommunities.org/id/london-borough-council/sutton,London Borough of Sutton,08/05/2019,1275722,27.99 , SPORTSDIRECT.COM,CARLTON GT4 FEATHERS SHUTTTLE 00 WHITE FAST (TO 0235),Sutton College,Education Equipment,F009,
http://opendatacommunities.org/id/london-borough-council/sutton,London Borough of Sutton,23/05/2019,1275722,6.77 , AMZN MKTP UK MN6HG0DV4,BATTERIES,Sutton College,Administrative Equipment,F001,
http://opendatacommunities.org/id/london-borough-council/sutton,London Borough of Sutton,30/04/2019,1275722,208.74 , O2 UK PAYMENT,MOBILE PHONES FOR IT & IAG,Sutton College,Administrative Equipment,F001,
http://opendatacommunities.org/id/london-borough-council/sutton,London Borough of Sutton,12/05/2019,1275722,33.29 , AMZNMKTPLACE,WRIST REST,Sutton College,Purchase of IT Equipment,F380,
http://opendatacommunities.org/id/london-borough-council/sutton,London Borough of Sutton,30/04/2019,1275722,138.00 , AUTHSMTP.COM EMAIL,SERVICE RENEWAL,Sutton College,IT Licences,F385,
http://opendatacommunities.org/id/london-borough-council/sutton,London Borough of Sutton,30/04/2019,1275722,50.78 , MAILCHIMP    MONTHLY,EMAIL MARKETING,Sutton College,Subscriptions - General,F450,
http://opendatacommunities.org/id/london-borough-council/sutton,London Borough of Sutton,15/05/2019,1275722,18.70 , AMAZON.CO.UK MN8VK7V44,MASTER LOCK,Sutton College,Administrative Equipment,F001,
http://opendatacommunities.org/id/london-borough-council/sutton,London Borough of Sutton,30/04/2019,1275722,109.00 , VIKING UK,LAMINATOR,Sutton College,Administrative Equipment,F001,
http://opendatacommunities.org/id/london-borough-council/sutton,London Borough of Sutton,01/05/2019,1275722,9.48 , AMZNMKTPLACE,VERTICAL BLIND HANGERS,Sutton College,Materials - General,F100,
http://opendatacommunities.org/id/london-borough-council/sutton,London Borough of Sutton,23/05/2019,1275722,263.70 , WWW.INSTANTPRINT.C,CLASSIC WHITE STAPLED BOOKLETS A5 DOUBLE SIDED,Sutton College,Education Equipment,F009,
http://opendatacommunities.org/id/london-borough-council/sutton,London Borough of Sutton,23/05/2019,1275722,27.99 , SPORTSDIRECT.COM,SHUTTLECOCKS,Sutton College,Education Equipment,F009,
http://opendatacommunities.org/id/london-borough-council/sutton,London Borough of Sutton,14/05/2019,1275722,(36.50), LOVEKNITTINGCOM,ITEMS RETURNED DUE TO LATE DELIVERY,Sutton College,Education Equipment,F009,
http://opendatacommunities.org/id/london-borough-council/sutton,London Borough of Sutton,08/05/2019,1275722,24.07 , WWW.TOOLSTATION.COM,FACE MASKS,Sutton College,Education Equipment,F009,
http://opendatacommunities.org/id/london-borough-council/sutton,London Borough of Sutton,07/05/2019,1275722,36.50 , LOVEKNITTINGCOM,YARNS FOR COURSE,Sutton College,Education Equipment,F009,
http://opendatacommunities.org/id/london-borough-council/sutton,London Borough of Sutton,16/05/2019,1275722,315.37 , WWW.INSTANTPRINT.C,LEAFLET PRINT,Sutton College,Advertising/Publicity (non Staff),F240,
http://opendatacommunities.org/id/london-borough-council/sutton,London Borough of Sutton,24/05/2019,1275722,14.05 , MELBOURNE NURSERY,C&G FLORISTRY 24/5/19,Sutton College,Education Equipment,F009,
http://opendatacommunities.org/id/london-borough-council/sutton,London Borough of Sutton,23/05/2019,1275722,17.95 , MELBOURNE NURSERY,FOUNDATION IN FLORISTRY 23/5/19,Sutton College,Education Equipment,F009,
http://opendatacommunities.org/id/london-borough-council/sutton,London Borough of Sutton,16/05/2019,1275722,23.76 , MELBOURNE NURSERY,"4 FOUNDATION IN FLORISTRY 16/5/19, 19.76 C&G FLORISTRY 17/5/19",Sutton College,Education Equipment,F009,
http://opendatacommunities.org/id/london-borough-council/sutton,London Borough of Sutton,09/05/2019,1275722,3.25 , WAITROSE 677,FOUNDATION IN FLORISTRY 23/5/19,Sutton College,Education Equipment,F009,
http://opendatacommunities.org/id/london-borough-council/sutton,London Borough of Sutton,09/05/2019,1275722,11.40 , MELBOURNE NURSERY,FOUNDATION IN FLORISTRY 23/5/19,Sutton College,Education Equipment,F009,
http://opendatacommunities.org/id/london-borough-council/sutton,London Borough of Sutton,08/05/2019,1275722,4.97 , ALDI STORES LTD,DEMO MATERIALS FOR CLASS 9/5/19,Sutton College,Education Equipment,F009,
http://opendatacommunities.org/id/london-borough-council/sutton,London Borough of Sutton,22/05/2019,1275722,9.45 , SAINSBURYS SACAT 2006,SPRINGBOARD COOKERY MATERIALS,Sutton College,Education Equipment,F009,
http://opendatacommunities.org/id/london-borough-council/sutton,London Borough of Sutton,08/05/2019,1275722,1.10 , SAINSBURYS SACAT 2006,SPRINGBOARD COOKERY MATERIALS,Sutton College,Materials - General,F100,
http://opendatacommunities.org/id/london-borough-council/sutton,London Borough of Sutton,07/05/2019,1275722,27.31 , ASDA STORES,SPRINGBOARD COOKERY MATERIALS,Sutton College,Materials - General,F100,
http://opendatacommunities.org/id/london-borough-council/sutton,London Borough of Sutton,30/04/2019,1275722,3.90 , WILKO RETAIL LIMIT,SPRINGBOARD COOKERY MATERIALS,Sutton College,Materials - General,F100,
http://opendatacommunities.org/id/london-borough-council/sutton,London Borough of Sutton,29/04/2019,1275722,12.35 , SAINSBURYS SACAT 2006,SPRINGBOARD COOKERY MATERIALS,Sutton College,Materials - General,F100,
http://opendatacommunities.org/id/london-borough-council/sutton,London Borough of Sutton,29/04/2019,1275722,15.42 , LIDL GB LONDON,SPRINGBOARD COOKERY MATERIALS,Sutton College,Materials - General,F100,
http://opendatacommunities.org/id/london-borough-council/sutton,London Borough of Sutton,21/05/2019,1275722,3.00 , WILKO RETAIL LIMIT,SPRINGBOARD COOKERY MATERIALS,Sutton College,Provisions - General,F150,
http://opendatacommunities.org/id/london-borough-council/sutton,London Borough of Sutton,20/05/2019,1275722,26.95 , SAINSBURYS 2006,SPRINGBOARD COOKERY MATERIALS,Sutton College,Provisions - General,F150,
http://opendatacommunities.org/id/london-borough-council/sutton,London Borough of Sutton,14/05/2019,1275722,4.40 , WILKO RETAIL LIMIT,SPRINGBOARD COOKERY MATERIALS,Sutton College,Provisions - General,F150,
http://opendatacommunities.org/id/london-borough-council/sutton,London Borough of Sutton,13/05/2019,1275722,31.00 , SAINSBURYS SACAT 2006,SPRINGBOARD COOKERY MATERIALS,Sutton College,Provisions - General,F150,
http://opendatacommunities.org/id/london-borough-council/sutton,London Borough of Sutton,07/05/2019,1275722,4.00 , WILKO RETAIL LIMIT,SPRINGBOARD COOKERY MATERIALS,Sutton College,Provisions - General,F150,
http://opendatacommunities.org/id/london-borough-council/sutton,London Borough of Sutton,24/05/2019,1275722,20.00 , OYSTER AUTO-TOP UP,20.00 - A530 0301 9999 - OYSTER TOP UP,Peoples Services Directorate,Conferences - Travel and Subsistence,A526,
http://opendatacommunities.org/id/london-borough-council/sutton,London Borough of Sutton,26/05/2019,1275722,20.00 , OYSTER AUTO-TOP UP,20.00 - A530 0301 9999,Peoples Services Directorate,Travelling and Subsistence Allowances,A530,
http://opendatacommunities.org/id/london-borough-council/sutton,London Borough of Sutton,25/05/2019,1275722,20.00 , OYSTER AUTO-TOP UP,20.00 - A530 0301 9999 - OYSTER TOP UP 2,Peoples Services Directorate,Travelling and Subsistence Allowances,A530,
http://opendatacommunities.org/id/london-borough-council/sutton,London Borough of Sutton,01/05/2019,1275722,20.00 , OYSTER AUTO-TOP UP,20.00 AUTO TOP UP A530 0301 9999,Peoples Services Directorate,Travelling and Subsistence Allowances,A530,
http://opendatacommunities.org/id/london-borough-council/sutton,London Borough of Sutton,01/05/2019,1275722,20.00 , OYSTER AUTO-TOP UP,20.00 AUTO TOP UP A530 0301 9999 -,Peoples Services Directorate,Travelling and Subsistence Allowances,A530,
http://opendatacommunities.org/id/london-borough-council/sutton,London Borough of Sutton,27/04/2019,1275722,20.00 , OYSTER AUTO-TOP UP,20.00 AUTO TOP UP - A530 0301 9999 - 27TH APRIL.PNG,Peoples Services Directorate,Travelling and Subsistence Allowances,A530,
http://opendatacommunities.org/id/london-borough-council/sutton,London Borough of Sutton,28/04/2019,1275722,20.00 , OYSTER AUTO-TOP UP,20.00 AUTO TOP UP - A530 0301 9999 -,Peoples Services Directorate,Recruitment Expenses,A531,
http://opendatacommunities.org/id/london-borough-council/sutton,London Borough of Sutton,24/05/2019,1275722,200.00 , TEAM SPORT V/T,YOT ACTIVITY,Peoples Services Directorate,Personal Requisites,F106,
http://opendatacommunities.org/id/london-borough-council/sutton,London Borough of Sutton,13/05/2019,1275722,20.00 , OYSTER AUTO-TOP UP,20.00 - A530 0304 9999 -,Peoples Services Directorate,Travelling and Subsistence Allowances,A530,
http://opendatacommunities.org/id/london-borough-council/sutton,London Borough of Sutton,09/05/2019,1275722,20.00 , OYSTER AUTO-TOP UP,20.00 OYSTER TOP UP - A530 0304 9999 1,Peoples Services Directorate,Travelling and Subsistence Allowances,A530,
http://opendatacommunities.org/id/london-borough-council/sutton,London Borough of Sutton,22/05/2019,1275722,4.79 , STARBUCKS,VISIT TO JL,Peoples Services Directorate,Travelling and Subsistence Allowances,A530,
http://opendatacommunities.org/id/london-borough-council/sutton,London Borough of Sutton,08/05/2019,1275722,13.10 , NEW SOUTHERN RAILW,TRAVEL TO LONDON WITH MA,Peoples Services Directorate,Travelling and Subsistence Allowances,A530,
http://opendatacommunities.org/id/london-borough-council/sutton,London Borough of Sutton,21/05/2019,1275722,108.00 , GEN REGISTER OFFICE,REQUISITES,Peoples Services Directorate,Personal Requisites,F106,
http://opendatacommunities.org/id/london-borough-council/sutton,London Borough of Sutton,21/05/2019,1275722,(108.75), GEN REGISTER OFFICE,REQUISITES,Peoples Services Directorate,Personal Requisites,F106,
http://opendatacommunities.org/id/london-borough-council/sutton,London Borough of Sutton,03/05/2019,1275722,11.00 , LBSUTTON,MC BIRTH CERTIFICATE,Peoples Services Directorate,Personal Requisites,F106,
http://opendatacommunities.org/id/london-borough-council/sutton,London Borough of Sutton,02/05/2019,1275722,11.85 , MOON ON THE HILL,RA ACTIVITY,Peoples Services Directorate,Personal Requisites,F106,
http://opendatacommunities.org/id/london-borough-council/sutton,London Borough of Sutton,01/05/2019,1275722,34.00 , DVLA DRIVER ONLINE,AK ID,Peoples Services Directorate,Personal Requisites,F106,
http://opendatacommunities.org/id/london-borough-council/sutton,London Borough of Sutton,21/05/2019,1275722,40.00 , WILKO.COM,ALLOTMENT PROJECT THE QUAD,Peoples Services Directorate,Personal Requisites,F106,
http://opendatacommunities.org/id/london-borough-council/sutton,London Borough of Sutton,21/05/2019,1275722,8.60 , B & Q 1191,ALLOTMENT PROJECT,Peoples Services Directorate,Personal Requisites,F106,
http://opendatacommunities.org/id/london-borough-council/sutton,London Borough of Sutton,21/05/2019,1275722,13.33 , POUNDLAND LTD 1211,ALLOTMENT PROJECT,Peoples Services Directorate,Personal Requisites,F106,
http://opendatacommunities.org/id/london-borough-council/sutton,London Borough of Sutton,21/05/2019,1275722,17.00 , WILKO RETAIL LIMIT,ALLOTMENT PROJECT,Peoples Services Directorate,Personal Requisites,F106,
http://opendatacommunities.org/id/london-borough-council/sutton,London Borough of Sutton,20/05/2019,1275722,4.67 , SUBWAY,AO ACTIVITY,Peoples Services Directorate,Personal Requisites,F106,
http://opendatacommunities.org/id/london-borough-council/sutton,London Borough of Sutton,13/05/2019,1275722,4.66 , BURGER KING,AO ACTIVITY,Peoples Services Directorate,Personal Requisites,F106,
http://opendatacommunities.org/id/london-borough-council/sutton,London Borough of Sutton,10/05/2019,1275722,3.75 , BP WRYTHE CONNECT,MA ACTIVITY,Peoples Services Directorate,Personal Requisites,F106,
http://opendatacommunities.org/id/london-borough-council/sutton,London Borough of Sutton,08/05/2019,1275722,9.22 , MARKS & SPENCER SSP,MA ACTIVITY,Peoples Services Directorate,Personal Requisites,F106,
http://opendatacommunities.org/id/london-borough-council/sutton,London Borough of Sutton,08/05/2019,1275722,10.00 , POST OFFICE COUNTER,LIFE SKILLS PRIZE,Peoples Services Directorate,Personal Requisites,F106,
http://opendatacommunities.org/id/london-borough-council/sutton,London Borough of Sutton,08/05/2019,1275722,52.70 , TESCO STORE 3235,LIFE SKILLS COURSE FOOD,Peoples Services Directorate,Personal Requisites,F106,
http://opendatacommunities.org/id/london-borough-council/sutton,London Borough of Sutton,26/04/2019,1275722,150.00 , TRINITYONLINEPAY,150.00 - F285 0304 9999 - TRINITY COLLEGE LONDON - BRITISH NATIONALITY EXAM.PNG,Peoples Services Directorate,Fees - Exams,F285,
http://opendatacommunities.org/id/london-borough-council/sutton,London Borough of Sutton,09/05/2019,1275722,889.00 , HOLIDAY INN KINGSTON S,HOTEL EMERGENCY ACCOMMODATION,Peoples Services Directorate,Accommodation - Supported Living,H201,
http://opendatacommunities.org/id/london-borough-council/sutton,London Borough of Sutton,09/05/2019,1275722,357.00 , HOLIDAY INN KINGSTON S,EMERGENCY ACCOMADATION,Peoples Services Directorate,Accommodation - Supported Living,H201,
http://opendatacommunities.org/id/london-borough-council/sutton,London Borough of Sutton,09/05/2019,1275722,889.00 , HOLIDAY INN KINGSTON S,HOTEL EMERGENCY ACCOMMODATION,Peoples Services Directorate,Accommodation - Supported Living,H201,
http://opendatacommunities.org/id/london-borough-council/sutton,London Borough of Sutton,23/05/2019,1275722,"1,340.90 ", B.COM 2260846-O0WD3 HA,CLIENT ACCOMMODATION,Peoples Services Directorate,Accommodation - Bed and Breakfast,H202,
http://opendatacommunities.org/id/london-borough-council/sutton,London Borough of Sutton,23/05/2019,1275722,"1,040.00 ", HOLIDAY INN KINGSTON S,1040.00 - H202 0304 9999 - CLIENT EMERGENCY  ACCOMMODATION,Peoples Services Directorate,Accommodation - Bed and Breakfast,H202,
http://opendatacommunities.org/id/london-borough-council/sutton,London Borough of Sutton,16/05/2019,1275722,"2,100.00 ", HOLIDAY INN KINGSTON S,2100 - H212 0304 9999 - HOLIDAY INN,Peoples Services Directorate,C.C.A Travel & Subsistance,H212,
http://opendatacommunities.org/id/london-borough-council/sutton,London Borough of Sutton,08/05/2019,1275722,13.10 , NEW SOUTHERN RAILW,MA TRAVEL PP,Peoples Services Directorate,C.C.A Travel & Subsistance,H212,
http://opendatacommunities.org/id/london-borough-council/sutton,London Borough of Sutton,03/05/2019,1275722,221.95 , WWW.ARGOS.CO.UK,JA SETTING UP,Peoples Services Directorate,Set Up Costs - Children Leaving Care,H336,
http://opendatacommunities.org/id/london-borough-council/sutton,London Borough of Sutton,03/05/2019,1275722,285.00 , B & Q 1237,AB SETTING UP,Peoples Services Directorate,Set Up Costs - Children Leaving Care,H336,
http://opendatacommunities.org/id/london-borough-council/sutton,London Borough of Sutton,30/04/2019,1275722,154.50 , TVLICENSING.CO.UK,CG TV LICENSE,Peoples Services Directorate,Set Up Costs - Children Leaving Care,H336,
http://opendatacommunities.org/id/london-borough-council/sutton,London Borough of Sutton,09/05/2019,1275722,266.67 , BRITISH HEART FOUNDATI,JA SETTING UP,Peoples Services Directorate,Set Up Costs - Children Leaving Care,H336,
http://opendatacommunities.org/id/london-borough-council/sutton,London Borough of Sutton,03/05/2019,1275722,762.00 , SUTTON APPLIANCES,JA SETTING UP,Peoples Services Directorate,Set Up Costs - Children Leaving Care,H336,
http://opendatacommunities.org/id/london-borough-council/sutton,London Borough of Sutton,22/05/2019,1275722,(35.50), WWW.CENTRALBEDFORDSHIR, REQUISITES,Peoples Services Directorate,Personal Requisites,F106,
http://opendatacommunities.org/id/london-borough-council/sutton,London Borough of Sutton,21/05/2019,1275722,115.25 , GEN REGISTER OFFICE,REQUISITES,Peoples Services Directorate,Personal Requisites,F106,
http://opendatacommunities.org/id/london-borough-council/sutton,London Borough of Sutton,21/05/2019,1275722,35.50 , WWW.CENTRALBEDFORDSHIR,REQUISITES,Peoples Services Directorate,Personal Requisites,F106,
http://opendatacommunities.org/id/london-borough-council/sutton,London Borough of Sutton,15/05/2019,1275722,22.00 , LBSUTTON,22.00 - F106 0305 9999 - SOUTHWARK BIRTH CERT.,Peoples Services Directorate,Personal Requisites,F106,
http://opendatacommunities.org/id/london-borough-council/sutton,London Borough of Sutton,15/05/2019,1275722,20.00 , OYSTER AUTO-TOP UP,20.00 - A530 0310 9999 - OYSTER TOPUP,Peoples Services Directorate,Travelling and Subsistence Allowances,A530,
http://opendatacommunities.org/id/london-borough-council/sutton,London Borough of Sutton,16/05/2019,1275722,"1,632.85 ", TRAVELODGE,CLIENT ACCOMMODATION,Peoples Services Directorate,C.C.A Travel & Subsistance,H212,
http://opendatacommunities.org/id/london-borough-council/sutton,London Borough of Sutton,26/04/2019,1275722,20.00 , OYSTER AUTO-TOP UP,20.00 AUTO TOP UP - A530 0311 9999 - 28TH APRIL.PNG,Peoples Services Directorate,Travelling and Subsistence Allowances,A530,
http://opendatacommunities.org/id/london-borough-council/sutton,London Borough of Sutton,07/05/2019,1275722,20.65 , OYSTER ONLINE,TRAVEL,Peoples Services Directorate,Travelling and Subsistence Allowances,A530,
http://opendatacommunities.org/id/london-borough-council/sutton,London Borough of Sutton,02/05/2019,1275722,68.25 , POST OFFICE COUNTER,68.25 - PASSPORT RECEIP,Peoples Services Directorate,Travelling and Subsistence Allowances,A530,
http://opendatacommunities.org/id/london-borough-council/sutton,London Borough of Sutton,12/05/2019,1275722,20.00 , OYSTER AUTO-TOP UP,20.00 - A530 9999 - OYSTER TOP UP,Peoples Services Directorate,Travelling and Subsistence Allowances,A530,
http://opendatacommunities.org/id/london-borough-council/sutton,London Borough of Sutton,11/05/2019,1275722,20.00 , OYSTER AUTO-TOP UP,20.00 - A530 9999 - OYSTER TOP UP,Peoples Services Directorate,Travelling and Subsistence Allowances,A530,
http://opendatacommunities.org/id/london-borough-council/sutton,London Borough of Sutton,11/05/2019,1275722,20.00 , OYSTER AUTO-TOP UP,20.00 - A530 9999 - OYSTER TOP UP,Peoples Services Directorate,Travelling and Subsistence Allowances,A530,
http://opendatacommunities.org/id/london-borough-council/sutton,London Borough of Sutton,11/05/2019,1275722,20.00 , OYSTER AUTO-TOP UP,20.00 - A530 9999 - OYSTER TOP UP,Peoples Services Directorate,Travelling and Subsistence Allowances,A530,
http://opendatacommunities.org/id/london-borough-council/sutton,London Borough of Sutton,10/05/2019,1275722,20.00 , OYSTER AUTO-TOP UP,20.00 - A530 9999 - OYSTER TOP UP,Peoples Services Directorate,Travelling and Subsistence Allowances,A530,
http://opendatacommunities.org/id/london-borough-council/sutton,London Borough of Sutton,10/05/2019,1275722,20.00 , OYSTER AUTO-TOP UP,20.00 - A530 9999 -,Peoples Services Directorate,Travelling and Subsistence Allowances,A530,
http://opendatacommunities.org/id/london-borough-council/sutton,London Borough of Sutton,23/05/2019,1275722,20.00 , OYSTER AUTO-TOP UP,20.00 - A530 ? 9999 -,Peoples Services Directorate,Travelling and Subsistence Allowances,A530,
http://opendatacommunities.org/id/london-borough-council/sutton,London Borough of Sutton,22/05/2019,1275722,108.00 , DONCASTER MBC,20.00 AUTO TOP UP,Peoples Services Directorate,Travelling and Subsistence Allowances,A530,
http://opendatacommunities.org/id/london-borough-council/sutton,London Borough of Sutton,22/05/2019,1275722,20.00 , OYSTER AUTO-TOP UP,20.00 - A530 0311 9999 - OYSTER TOP,Peoples Services Directorate,Travelling and Subsistence Allowances,A530,
http://opendatacommunities.org/id/london-borough-council/sutton,London Borough of Sutton,18/05/2019,1275722,20.00 , OYSTER AUTO-TOP UP,20.00 - A530 9999 - OYSTER TOP UP 1,Peoples Services Directorate,Travelling and Subsistence Allowances,A530,
http://opendatacommunities.org/id/london-borough-council/sutton,London Borough of Sutton,16/05/2019,1275722,20.00 , OYSTER AUTO-TOP UP,20.00 - A530 9999 - OYSTER TOP UP,Peoples Services Directorate,Travelling and Subsistence Allowances,A530,
http://opendatacommunities.org/id/london-borough-council/sutton,London Borough of Sutton,28/04/2019,1275722,20.00 , OYSTER AUTO-TOP UP,20.00 AUTO TOP UP - A530 0311 9999,Peoples Services Directorate,Travelling and Subsistence Allowances,A530,
http://opendatacommunities.org/id/london-borough-council/sutton,London Borough of Sutton,27/04/2019,1275722,20.00 , OYSTER AUTO-TOP UP,20.00 AUTO TOP UP - A530 0311 9999 - 28TH APRIL.PNG,Peoples Services Directorate,Travelling and Subsistence Allowances,A530,
http://opendatacommunities.org/id/london-borough-council/sutton,London Borough of Sutton,27/04/2019,1275722,20.00 , OYSTER AUTO-TOP UP,20.00 AUTO TOP UP - A530 0311 9999 -,Peoples Services Directorate,Travelling and Subsistence Allowances,A530,
http://opendatacommunities.org/id/london-borough-council/sutton,London Borough of Sutton,03/05/2019,1275722,73.25 , POST OFFICE COUNTER,73.25 - F106 0311 9999 - PASSPORT CHECK RB,Peoples Services Directorate,Personal Requisites,F106,
http://opendatacommunities.org/id/london-borough-council/sutton,London Borough of Sutton,24/05/2019,1275722,199.00 , UKBA11539442335,199.00 - F106 0311 9999 - VISA,Peoples Services Directorate,Personal Requisites,F106,
http://opendatacommunities.org/id/london-borough-council/sutton,London Borough of Sutton,01/05/2019,1275722,23.60 , RB KEN&CHELSEA,23.60 - F106 0311 9999 - BIRTH CERT X2 KENSINGTON AND CHELSEA,Peoples Services Directorate,Personal Requisites,F106,
http://opendatacommunities.org/id/london-borough-council/sutton,London Borough of Sutton,01/05/2019,1275722,22.00 , LBSUTTON,22.00 - F106 0311 9999 - BIRTH CERT X2 SUTTON.PNG,Peoples Services Directorate,Personal Requisites,F106,
http://opendatacommunities.org/id/london-borough-council/sutton,London Borough of Sutton,20/05/2019,1275722,177.00 , HM PASSPORT,177.00 - F106 0311 9999 - PASSPORT OFFICE APPOINTMENT.,Peoples Services Directorate,Personal Requisites,F106,
http://opendatacommunities.org/id/london-borough-council/sutton,London Borough of Sutton,14/05/2019,1275722,70.00 , WWW.TEAM-SPORT.CO.UK,LAC ACTIVITY,Peoples Services Directorate,Personal Requisites,F106,
http://opendatacommunities.org/id/london-borough-council/sutton,London Borough of Sutton,22/05/2019,1275722,25.90 , EMPIRE CINEMAS,25.90 - F106 0311 9999 - EMPIRE CINEMAS FOR CONTACT SESSION,Peoples Services Directorate,Provisions - General,F150,
http://opendatacommunities.org/id/london-borough-council/sutton,London Borough of Sutton,10/05/2019,1275722,200.00 , PCWB TELESALES,PURCHASE OF LAC CHILD LAPTOP,Peoples Services Directorate,Purchase of IT Equipment,F380,
http://opendatacommunities.org/id/london-borough-council/sutton,London Borough of Sutton,27/04/2019,1275722,118.75 , HOLIDAY INNS,HOLIDAY INN LAC TEAM CLIENT STAY,Peoples Services Directorate,Accommodation - Bed and Breakfast,H202,
http://opendatacommunities.org/id/london-borough-council/sutton,London Borough of Sutton,26/04/2019,1275722,20.00 , WWW.WIGHTLINK.CO.UK,20.00 - H212 0311 9999 - WIGHTLINK FERRIES .PNG,Peoples Services Directorate,C.C.A Travel & Subsistance,H212,
http://opendatacommunities.org/id/london-borough-council/sutton,London Borough of Sutton,26/04/2019,1275722,20.00 , OYSTER AUTO-TOP UP,20.00 - H212 0311 9999 - WIGHTLINK FERRIES .PNG,Peoples Services Directorate,C.C.A Travel & Subsistance,H212,
http://opendatacommunities.org/id/london-borough-council/sutton,London Borough of Sutton,06/05/2019,1275722,20.00 , OYSTER AUTO-TOP UP,20.00 AUTO TOP UP - A530 0312 9999,Peoples Services Directorate,Travelling and Subsistence Allowances,A530,
http://opendatacommunities.org/id/london-borough-council/sutton,London Borough of Sutton,05/05/2019,1275722,20.00 , OYSTER AUTO-TOP UP,20.00 AUTO TOP UP - A530 0312 9999,Peoples Services Directorate,Travelling and Subsistence Allowances,A530,
http://opendatacommunities.org/id/london-borough-council/sutton,London Borough of Sutton,04/05/2019,1275722,20.00 , OYSTER AUTO-TOP UP,20.00 AUTO TOP UP - A530 0312 9999 -,Peoples Services Directorate,Travelling and Subsistence Allowances,A530,
http://opendatacommunities.org/id/london-borough-council/sutton,London Borough of Sutton,03/05/2019,1275722,20.00 , OYSTER AUTO-TOP UP,20.00 AUTO TOP UP - A530 0312 9999 -,Peoples Services Directorate,Travelling and Subsistence Allowances,A530,
http://opendatacommunities.org/id/london-borough-council/sutton,London Borough of Sutton,03/05/2019,1275722,20.00 , OYSTER AUTO-TOP UP,20.00 AUTO TOP UP - A530 0312 9999 -,Peoples Services Directorate,Travelling and Subsistence Allowances,A530,
http://opendatacommunities.org/id/london-borough-council/sutton,London Borough of Sutton,03/05/2019,1275722,20.00 , OYSTER AUTO-TOP UP,20.00 AUTO TOP UP - A530 0312 9999,Peoples Services Directorate,Travelling and Subsistence Allowances,A530,
http://opendatacommunities.org/id/london-borough-council/sutton,London Borough of Sutton,16/05/2019,1275722,20.00 , OYSTER AUTO-TOP UP,20.00 - A530 9999 - OYSTER TOP UP,Peoples Services Directorate,Travelling and Subsistence Allowances,A530,
http://opendatacommunities.org/id/london-borough-council/sutton,London Borough of Sutton,11/05/2019,1275722,20.00 , OYSTER AUTO-TOP UP,20.00 - A530 9999 -,Peoples Services Directorate,Travelling and Subsistence Allowances,A530,
http://opendatacommunities.org/id/london-borough-council/sutton,London Borough of Sutton,18/05/2019,1275722,20.00 , OYSTER AUTO-TOP UP,20.00 - A530 0312 9999 - OYSTER TOP UP,Peoples Services Directorate,Travelling and Subsistence Allowances,A530,
http://opendatacommunities.org/id/london-borough-council/sutton,London Borough of Sutton,26/04/2019,1275722,20.00 , OYSTER AUTO-TOP UP,20.00 - A530 0312 9999 - OYSTER CARD TOP UP 4TH APRIL COURT.PNG,Peoples Services Directorate,Travelling and Subsistence Allowances,A530,
http://opendatacommunities.org/id/london-borough-council/sutton,London Borough of Sutton,22/05/2019,1275722,29.97 , AMZNMKTPLACE," - TEKHOME DESK FAN WITH USB,",Peoples Services Directorate,Personal Requisites,F106,
http://opendatacommunities.org/id/london-borough-council/sutton,London Borough of Sutton,21/05/2019,1275722,33.00 , LBSUTTON,REQUISITES,Peoples Services Directorate,Personal Requisites,F106,
http://opendatacommunities.org/id/london-borough-council/sutton,London Borough of Sutton,21/05/2019,1275722,33.00 , LBSUTTON,REQUISITES,Peoples Services Directorate,Personal Requisites,F106,
http://opendatacommunities.org/id/london-borough-council/sutton,London Borough of Sutton,21/05/2019,1275722,33.00 , LBSUTTON,REQUISITES,Peoples Services Directorate,Personal Requisites,F106,
http://opendatacommunities.org/id/london-borough-council/sutton,London Borough of Sutton,24/05/2019,1275722,33.00 , WWW.EASTSUSSEXCC.GOV.U,CLIENT DOCUMENTATION,Peoples Services Directorate,Personal Requisites,F106,
http://opendatacommunities.org/id/london-borough-council/sutton,London Borough of Sutton,24/05/2019,1275722,72.00 , GEN REGISTER OFFICE,CLIENT DOCUMENTATION,Peoples Services Directorate,Personal Requisites,F106,
http://opendatacommunities.org/id/london-borough-council/sutton,London Borough of Sutton,17/05/2019,1275722,22.00 , L B SOUTHWARK - INT,22.00 - F106 0312 9999 - BIRTH CERT SUTTON.,Peoples Services Directorate,Personal Requisites,F106,
http://opendatacommunities.org/id/london-borough-council/sutton,London Borough of Sutton,08/05/2019,1275722,51.40 , NATIONAL EXPRESS LIMIT,51.40 - H212 0312 9999 - NATIONAL EXPRESS TICKET.PNG,Peoples Services Directorate,C.C.A Travel & Subsistance,H212,
http://opendatacommunities.org/id/london-borough-council/sutton,London Borough of Sutton,30/04/2019,1275722,57.00 , NATIONAL EXPRESS LIMIT,57.00 - H212 0312 9999 - NATIONAL EXPRESS TICKET.PNG,Peoples Services Directorate,C.C.A Travel & Subsistance,H212,
http://opendatacommunities.org/id/london-borough-council/sutton,London Borough of Sutton,25/05/2019,1275722,53.00 , NATIONAL EXPRESS LIMIT,CLIENT TRAVEL,Peoples Services Directorate,C.C.A Travel & Subsistance,H212,
http://opendatacommunities.org/id/london-borough-council/sutton,London Borough of Sutton,17/05/2019,1275722,53.00 , NATIONAL EXPRESS LIMIT,CLIENT TRAVEL,Peoples Services Directorate,C.C.A Travel & Subsistance,H212,
http://opendatacommunities.org/id/london-borough-council/sutton,London Borough of Sutton,14/05/2019,1275722,51.40 , NATIONAL EXPRESS LIMIT,CLIENT TRAVEL,Peoples Services Directorate,C.C.A Travel & Subsistance,H212,
http://opendatacommunities.org/id/london-borough-council/sutton,London Borough of Sutton,22/05/2019,1275722,41.66 , AMZNMKTPLACE AMAZON.CO,LAYLEARN LARGE - BUBBLE TUBE LED LIGHT FLOOR NOVELTY LAMP,Peoples Services Directorate,Personal Requisites,F106,
http://opendatacommunities.org/id/london-borough-council/sutton,London Borough of Sutton,21/05/2019,1275722,51.90 , AMZNMKTPLACE AMAZON.CO, LED WAKE UP LIGHT I ALARM CLOCK I 7 COLOUR BEDSIDE LAMP,Peoples Services Directorate,Personal Requisites,F106,
http://opendatacommunities.org/id/london-borough-council/sutton,London Borough of Sutton,14/05/2019,1275722,143.94 , WWW.ARGOS.CO.UK,CLIENT SUBSISTENCE - FURNITURE,Peoples Services Directorate,Personal Requisites,F106,
http://opendatacommunities.org/id/london-borough-council/sutton,London Borough of Sutton,07/05/2019,1275722,20.00 , WWW.WIGHTLINK.CO.UK,CLIENT TRAVEL,Peoples Services Directorate,Travelling and Subsistence Allowances,A530,
http://opendatacommunities.org/id/london-borough-council/sutton,London Borough of Sutton,08/05/2019,1275722,15.00 , OYSTER ONLINE,15.00 - A530 0321 9999 - OYSTER FOR ADOPTION TEAM,Peoples Services Directorate,Travelling and Subsistence Allowances,A530,
http://opendatacommunities.org/id/london-borough-council/sutton,London Borough of Sutton,23/05/2019,1275722,20.00 , OYSTER AUTO-TOP UP,20.00 - A530 0321 9999 -,Peoples Services Directorate,Travelling and Subsistence Allowances,A530,
http://opendatacommunities.org/id/london-borough-council/sutton,London Borough of Sutton,01/05/2019,1275722,20.00 , OYSTER AUTO-TOP UP,20.00 AUTO TOP UP - A530 0321 9999,Peoples Services Directorate,Travelling and Subsistence Allowances,A530,
http://opendatacommunities.org/id/london-borough-council/sutton,London Borough of Sutton,16/05/2019,1275722,33.00 , KENT COUNTY COUNCIL,CLIENT DOCUMENTATION,Peoples Services Directorate,Personal Requisites,F106,
http://opendatacommunities.org/id/london-borough-council/sutton,London Borough of Sutton,16/05/2019,1275722,33.00 , LBSUTTON,SUTTON BIRTH CERT,Peoples Services Directorate,Personal Requisites,F106,
http://opendatacommunities.org/id/london-borough-council/sutton,London Borough of Sutton,08/05/2019,1275722,(5.25), TRAVELODGE,ACCOMMODATION,Peoples Services Directorate,C.C.A Travel & Subsistance,H212,
http://opendatacommunities.org/id/london-borough-council/sutton,London Borough of Sutton,01/05/2019,1275722,40.55 , TRAVELODGE,ACCOMODATION,Peoples Services Directorate,C.C.A Travel & Subsistance,H212,
http://opendatacommunities.org/id/london-borough-council/sutton,London Borough of Sutton,21/05/2019,1275722,55.44 , WWW.CORAM.ORG.UK,GOODS,Peoples Services Directorate,Books,F006,
http://opendatacommunities.org/id/london-borough-council/sutton,London Borough of Sutton,22/05/2019,1275722,170.00 , COUNTY COUNTY,CROYDON COUNTY COURT,Peoples Services Directorate,Personal Requisites,F106,
http://opendatacommunities.org/id/london-borough-council/sutton,London Borough of Sutton,17/05/2019,1275722,33.00 , LBSUTTON,33.00 - F106 0324 9999 - SUTTON BIRTH CERT,Peoples Services Directorate,Personal Requisites,F106,
http://opendatacommunities.org/id/london-borough-council/sutton,London Borough of Sutton,30/04/2019,1275722,94.98 , TESCO STORES 5999,TESCO ORDER SFC,Peoples Services Directorate,C.C.A Food & Clothing,H213,
http://opendatacommunities.org/id/london-borough-council/sutton,London Borough of Sutton,17/05/2019,1275722,20.00 , OYSTER AUTO-TOP UP,20.00 - A530 0359 9999 - OYSTER TOP,Peoples Services Directorate,Travelling and Subsistence Allowances,A530,
http://opendatacommunities.org/id/london-borough-council/sutton,London Borough of Sutton,02/05/2019,1275722,20.00 , OYSTER AUTO-TOP UP,20.00 AUTO TOP UP - A530 0359 9999 - 3RD MAY,Peoples Services Directorate,Travelling and Subsistence Allowances,A530,
http://opendatacommunities.org/id/london-borough-council/sutton,London Borough of Sutton,02/05/2019,1275722,20.00 , OYSTER AUTO-TOP UP,20.00 AUTO TOP UP - A530 0359 9999 -,Peoples Services Directorate,Travelling and Subsistence Allowances,A530,
http://opendatacommunities.org/id/london-borough-council/sutton,London Borough of Sutton,02/05/2019,1275722,20.00 , OYSTER AUTO-TOP UP,20.00 AUTO TOP UP - A530 0359 9999,Peoples Services Directorate,Travelling and Subsistence Allowances,A530,
http://opendatacommunities.org/id/london-borough-council/sutton,London Borough of Sutton,21/05/2019,1275722,20.00 , OYSTER AUTO-TOP UP,20.00 AUTO TOP UP - A530 0359 9999 - EARLY HELP,Peoples Services Directorate,Travelling and Subsistence Allowances,A530,
http://opendatacommunities.org/id/london-borough-council/sutton,London Borough of Sutton,18/05/2019,1275722,20.00 , OYSTER AUTO-TOP UP,20.00 - A530 0359 9999 - OYSTER TOP UP 1,Peoples Services Directorate,Travelling and Subsistence Allowances,A530,
http://opendatacommunities.org/id/london-borough-council/sutton,London Borough of Sutton,09/05/2019,1275722,79.50 , PREMIER INN,79.50 - H202 0359 9999 - PREMIER INN DURHAM,Peoples Services Directorate,Accommodation - Bed and Breakfast,H202,
http://opendatacommunities.org/id/london-borough-council/sutton,London Borough of Sutton,09/05/2019,1275722,272.00 , VIRGIN TRAINS,TRAIN TICKETS TO WIGAN FOR A TRAINING COURSE,Chief Executive's Directorate,Training - Travel and Subsistence,A521,
http://opendatacommunities.org/id/london-borough-council/sutton,London Borough of Sutton,09/05/2019,1275722,135.00 , PREMIER INN 44536565,ACCOMMODATION TO WIGAN FOR A TRAINING COURSE,Peoples Services Directorate,Hotel Accomodation,A512,
http://opendatacommunities.org/id/london-borough-council/sutton,London Borough of Sutton,19/05/2019,1275722,20.00 , OYSTER AUTO-TOP UP,CLIENT TRAVEL,Peoples Services Directorate,Travelling and Subsistence Allowances,A530,
http://opendatacommunities.org/id/london-borough-council/sutton,London Borough of Sutton,24/05/2019,1275722,20.00 , OYSTER AUTO-TOP UP,20.00 - A530 0383 9999,Peoples Services Directorate,Travelling and Subsistence Allowances,A530,
http://opendatacommunities.org/id/london-borough-council/sutton,London Borough of Sutton,13/05/2019,1275722,15.00 , OYSTER ONLINE,CLIENT TRAVEL,Peoples Services Directorate,Travelling and Subsistence Allowances,A530,
http://opendatacommunities.org/id/london-borough-council/sutton,London Borough of Sutton,13/05/2019,1275722,15.00 , OYSTER ONLINE,CLIENT TRAVEL,Peoples Services Directorate,Travelling and Subsistence Allowances,A530,
http://opendatacommunities.org/id/london-borough-council/sutton,London Borough of Sutton,13/05/2019,1275722,455.00 , PC SPECIALIST LTD,IT EQUIPMENT,Peoples Services Directorate,Administrative Equipment,F001,
http://opendatacommunities.org/id/london-borough-council/sutton,London Borough of Sutton,20/05/2019,1275722,336.00 , NJB RECYCLING LTD,336 - 0384 9999 -NJB RECYCLING HIRING A SKIP .PNG,Peoples Services Directorate,General Maintenance,D500,
http://opendatacommunities.org/id/london-borough-council/sutton,London Borough of Sutton,09/05/2019,1275722,638.40 , TRAVELODGE,EMERGENCY LIVING 638.40 - H202 0384 9999 -,Peoples Services Directorate,Accommodation - Supported Living,H201,
http://opendatacommunities.org/id/london-borough-council/sutton,London Borough of Sutton,26/05/2019,1275722,16.24 , AMAZON.CO.UK MN0E33KI4,SPLIT - MESOB ENGLISH - TIGRINYA DICTIONARY: MESOB ENGLISH - TIGRINYA DICTIONARY (100%),Peoples Services Directorate,LAC - Education,F269,
http://opendatacommunities.org/id/london-borough-council/sutton,London Borough of Sutton,24/05/2019,1275722,9.49 , AMAZON.CO.UK MN1DY5S54,"SPLIT - MODERN OROMO DICTIONARY: OROMO-ENGLISH, ENGLISH-OROMO (OROMO KASAHOROW) (76.04%)",Peoples Services Directorate,LAC - Education,F269,
http://opendatacommunities.org/id/london-borough-council/sutton,London Borough of Sutton,24/05/2019,1275722,2.99 , AMAZON.CO.UK MN1DY5S54,BALANCING ENTRY AMOUNT (23.96%),Peoples Services Directorate,LAC - Education,F269,
http://opendatacommunities.org/id/london-borough-council/sutton,London Borough of Sutton,23/05/2019,1275722,6.38 , AMZNMKTPLACE,SPLIT - THE FOUR AGREEMENTS (69.5%),Peoples Services Directorate,LAC - Education,F269,
http://opendatacommunities.org/id/london-borough-council/sutton,London Borough of Sutton,23/05/2019,1275722,2.80 , AMZNMKTPLACE,BALANCING ENTRY AMOUNT (30.5%),Peoples Services Directorate,LAC - Education,F269,
http://opendatacommunities.org/id/london-borough-council/sutton,London Borough of Sutton,15/05/2019,1275722,3.95 , AMAZON.CO.UK MN5S61XS4,SPLIT - NEW PRACTISE & LEARN: TIMES TABLES FOR AGES 7-11 (CGP KS2 PRACTISE & LEARN) (56.92%),Peoples Services Directorate,LAC - Education,F269,
http://opendatacommunities.org/id/london-borough-council/sutton,London Borough of Sutton,15/05/2019,1275722,2.99 , AMAZON.CO.UK MN5S61XS4,BALANCING ENTRY AMOUNT (43.08%),Peoples Services Directorate,LAC - Education,F269,
http://opendatacommunities.org/id/london-borough-council/sutton,London Borough of Sutton,15/05/2019,1275722,9.49 , AMAZON.CO.UK MN3UG0VL4,"SPLIT - MODERN OROMO DICTIONARY: OROMO-ENGLISH, ENGLISH-OROMO (OROMO KASAHOROW) (100%)",Peoples Services Directorate,LAC - Education,F269,
http://opendatacommunities.org/id/london-borough-council/sutton,London Borough of Sutton,13/05/2019,1275722,7.99 , AMZNMKTPLACE,GEOMETRY SET FOR CLA CHILD TO AID ACCESS TO MATHS LEARNING,Peoples Services Directorate,LAC - Education,F269,
http://opendatacommunities.org/id/london-borough-council/sutton,London Borough of Sutton,04/05/2019,1275722,7.99 , AMAZON PRIME MN7AH1NJ4,AMAZON PRIME MEMBERSHIP (SET UP BY MISTAKE AND NOW CANCELLED MOVING FORWARDS),Peoples Services Directorate,LAC - Education,F269,
http://opendatacommunities.org/id/london-borough-council/sutton,London Borough of Sutton,10/05/2019,1275722,20.00 , OYSTER AUTO-TOP UP,OYSTERCARD TOP UP,"Environment, Housing & Regeneration Directorate",General Office Expenses,F235,
http://opendatacommunities.org/id/london-borough-council/sutton,London Borough of Sutton,01/05/2019,1275722,20.00 , OYSTER AUTO-TOP UP,OYSTERCARD TOP UP,"Environment, Housing & Regeneration Directorate",General Office Expenses,F235,
http://opendatacommunities.org/id/london-borough-council/sutton,London Borough of Sutton,01/05/2019,1275722,20.00 , OYSTER AUTO-TOP UP,OYSTERCARD TOP UP,"Environment, Housing & Regeneration Directorate",General Office Expenses,F235,
http://opendatacommunities.org/id/london-borough-council/sutton,London Borough of Sutton,24/05/2019,1275722,20.00 , OYSTER AUTO-TOP UP,OYSTERCARD TOP UP,"Environment, Housing & Regeneration Directorate",General Office Expenses,F235,
http://opendatacommunities.org/id/london-borough-council/sutton,London Borough of Sutton,18/05/2019,1275722,20.00 , OYSTER AUTO-TOP UP,OYSTERCARD TOP UP,"Environment, Housing & Regeneration Directorate",General Office Expenses,F235,
http://opendatacommunities.org/id/london-borough-council/sutton,London Borough of Sutton,10/05/2019,1275722,20.00 , OYSTER AUTO-TOP UP,OYSTERCARD TOP UP,"Environment, Housing & Regeneration Directorate",General Office Expenses,F235,
http://opendatacommunities.org/id/london-borough-council/sutton,London Borough of Sutton,27/04/2019,1275722,20.00 , OYSTER AUTO-TOP UP,OYSTERCARD TOP UP,"Environment, Housing & Regeneration Directorate",Advertising/Publicity (non Staff),F240,
http://opendatacommunities.org/id/london-borough-council/sutton,London Borough of Sutton,20/05/2019,1275722,11.66 , AMZN MKTP UK MN2OB98K4,PROFESSIONAL PORTABLE RECORDER CASE,Chief Executive's Directorate,Repairs to Administrative Equipment,F030,
http://opendatacommunities.org/id/london-borough-council/sutton,London Borough of Sutton,20/05/2019,1275722,5.61 , AMZNMKTPLACE,SHOE BAGS,Chief Executive's Directorate,Repairs to Administrative Equipment,F030,
http://opendatacommunities.org/id/london-borough-council/sutton,London Borough of Sutton,20/05/2019,1275722,11.66 , AMZN MKTP UK MN44M5BV4,PROFESSIONAL PORTABLE RECORDER CASE,Chief Executive's Directorate,Repairs to Administrative Equipment,F030,
http://opendatacommunities.org/id/london-borough-council/sutton,London Borough of Sutton,12/05/2019,1275722,7.99 , AMAZON PRIME MN1K61124,AMAZON PRIME,Chief Executive's Directorate,Repairs to Administrative Equipment,F030,
http://opendatacommunities.org/id/london-borough-council/sutton,London Borough of Sutton,23/05/2019,1275722,9.41 , HTTP://WWW.PRIMATEL.CO,PAPER ROLLS FOR CHIP AND PIN MACHINE,Resources Directorate,Stationery,F220,
http://opendatacommunities.org/id/london-borough-council/sutton,London Borough of Sutton,16/05/2019,1275722,22.50 , CAFFE NEO,SANDWICHES FOR CONFERENCE HELD AT RUSSETTINGS,Resources Directorate,Hospitality (VAT not Recoverable),F325,
http://opendatacommunities.org/id/london-borough-council/sutton,London Borough of Sutton,16/05/2019,1275722,8.00 , SAINSBURYS LOC4121,HOSPITALITY FRUIT FOR CONFERENCE,Resources Directorate,Hospitality (VAT not Recoverable),F325,
http://opendatacommunities.org/id/london-borough-council/sutton,London Borough of Sutton,21/05/2019,1275722,8.14 , WAITROSE 559,MILK/BISCUITS,Resources Directorate,Hospitality (VAT not Recoverable),F325,
http://opendatacommunities.org/id/london-borough-council/sutton,London Borough of Sutton,30/04/2019,1275722,8.00 , TESCO STORE 3235,"MILK,COFFEE,BISCUITS",Resources Directorate,Hospitality (VAT not Recoverable),F325,
http://opendatacommunities.org/id/london-borough-council/sutton,London Borough of Sutton,15/05/2019,1275722,40.00 , WWW.ICO.GOV.UK,REGISTRATION WITH ICO,Resources Directorate,Subscriptions - General,F450,
http://opendatacommunities.org/id/london-borough-council/sutton,London Borough of Sutton,03/05/2019,1275722,8.32 , SPOTIFY P0AB10E1D6,MUSIC FOR CEREMONIES,Resources Directorate,Subscriptions - General,F450,
http://opendatacommunities.org/id/london-borough-council/sutton,London Borough of Sutton,13/05/2019,1275722,12.00 , SAINSBURYS SACAT 2331,BRIDAL SUITE DECOR,Resources Directorate,Miscellaneous Expenses,F620,
http://opendatacommunities.org/id/london-borough-council/sutton,London Borough of Sutton,10/05/2019,1275722,12.00 , SAINSBURYS SACAT 0038,DECORATIONS FOR BRIDAL SUITE,Resources Directorate,Miscellaneous Expenses,F620,
http://opendatacommunities.org/id/london-borough-council/sutton,London Borough of Sutton,24/05/2019,1275722,148.00 , CROSSWAYS NURSERY,FLOWERS FOR RUSSETTINGS GARDEN,Resources Directorate,Miscellaneous Expenses,F620,
http://opendatacommunities.org/id/london-borough-council/sutton,London Borough of Sutton,24/05/2019,1275722,30.00 , WOODCOTE GREEN,FLOWERS FOR GARDEN AND HOUSE SUTTON REGISTER OFFICE,Resources Directorate,Miscellaneous Expenses,F620,
http://opendatacommunities.org/id/london-borough-council/sutton,London Borough of Sutton,24/05/2019,1275722,10.35 , WOODCOTE GREEN,FLOWERS AT RUSSETTINGS,Resources Directorate,Miscellaneous Expenses,F620,
http://opendatacommunities.org/id/london-borough-council/sutton,London Borough of Sutton,14/05/2019,1275722,6.55 , THE WORKS,CHALK BOARD FOR MARKETING PURPOSES,Resources Directorate,Miscellaneous Expenses,F620,
http://opendatacommunities.org/id/london-borough-council/sutton,London Borough of Sutton,14/05/2019,1275722,28.00 , B & Q 1191,DECORATION MATERIALS FOR BRIDAL SUITE,Resources Directorate,Miscellaneous Expenses,F620,
http://opendatacommunities.org/id/london-borough-council/sutton,London Borough of Sutton,13/05/2019,1275722,25.40 , B & Q 1191,DECORATION MATERIAL FOR BRIDAL SUITE,Resources Directorate,Miscellaneous Expenses,F620,
http://opendatacommunities.org/id/london-borough-council/sutton,London Borough of Sutton,23/05/2019,1275722,69.23 , FLORAL IMAGE SUSSEX,FLOWERS FOR MARRIAGE ROOMS,Resources Directorate,Miscellaneous Expenses,F620,
http://opendatacommunities.org/id/london-borough-council/sutton,London Borough of Sutton,01/05/2019,1275722,10.00 , B & Q 1191,USB ADAPTOR FOR EUSS,Resources Directorate,Miscellaneous Expenses,F620,
http://opendatacommunities.org/id/london-borough-council/sutton,London Borough of Sutton,28/04/2019,1275722,8.98 , T K MAXX,PURCHASES,Resources Directorate,Miscellaneous Expenses,F620,
http://opendatacommunities.org/id/london-borough-council/sutton,London Borough of Sutton,08/05/2019,1275722,30.97 , AMAZON.CO.UK MN8Z34EE4,PURCHASES,Chief Executive's Directorate,Other Equipment - Purchase,F015,
http://opendatacommunities.org/id/london-borough-council/sutton,London Borough of Sutton,28/04/2019,1275722,201.32 , AMZNMKTPLACE,DIGITAL RECORDER FOR REMINISCENCE WORK,Chief Executive's Directorate,Other Equipment - Purchase,F015,
http://opendatacommunities.org/id/london-borough-council/sutton,London Borough of Sutton,12/05/2019,1275722,20.00 , OYSTER AUTO-TOP UP,OYSTERCARD TOP UP,"Environment, Housing & Regeneration Directorate",General Office Expenses,F235,
http://opendatacommunities.org/id/london-borough-council/sutton,London Borough of Sutton,26/04/2019,1275722,20.00 , OYSTER AUTO-TOP UP,OYSTERCARD TOP UP,"Environment, Housing & Regeneration Directorate",Advertising/Publicity (non Staff),F240,
http://opendatacommunities.org/id/london-borough-council/sutton,London Borough of Sutton,26/04/2019,1275722,33.78 , TRAINLINE,TRAIN TICKETS TO ATTEND THE IMPROVEMENT BOARD MEETING AT NORTHAMPTONSHIRE COUNCIL ON THE 9TH MAY 2019,Chief Executive's Directorate,Travelling and Subsistence Allowances,A530,
http://opendatacommunities.org/id/london-borough-council/sutton,London Borough of Sutton,18/05/2019,1275722,20.00 , OYSTER AUTO-TOP UP,TEAM OYSTER,Chief Executive's Directorate,Travelling and Subsistence Allowances,A530,
http://opendatacommunities.org/id/london-borough-council/sutton,London Borough of Sutton,17/05/2019,1275722,20.00 , OYSTER AUTO-TOP UP,TEAM OYSTER,Chief Executive's Directorate,Travelling and Subsistence Allowances,A530,
http://opendatacommunities.org/id/london-borough-council/sutton,London Borough of Sutton,03/05/2019,1275722,20.00 , OYSTER AUTO-TOP UP,TEAM OYSTER,Chief Executive's Directorate,Travelling and Subsistence Allowances,A530,
http://opendatacommunities.org/id/london-borough-council/sutton,London Borough of Sutton,27/04/2019,1275722,20.00 , OYSTER AUTO-TOP UP,TEAM OYSTER,Chief Executive's Directorate,Travelling and Subsistence Allowances,A530,
http://opendatacommunities.org/id/london-borough-council/sutton,London Borough of Sutton,24/05/2019,1275722,45.00 , AMZNMKTPLACE,FRAME FOR CEX OFFICE,Chief Executive's Directorate,General Office Expenses,F235,
http://opendatacommunities.org/id/london-borough-council/sutton,London Borough of Sutton,14/05/2019,1275722,127.82 , MAILCHIMP    MONTHLY,WEB HOSTING,Chief Executive's Directorate,Fees - Computer Software,F384,
http://opendatacommunities.org/id/london-borough-council/sutton,London Borough of Sutton,15/05/2019,1275722,5.41 , AMZNMKTPLACE,SPLIT - DWD  4.5 INCH MINI CASH MONEY BOX (65.94%),Resources Directorate,Administrative Equipment,F001,
http://opendatacommunities.org/id/london-borough-council/sutton,London Borough of Sutton,15/05/2019,1275722,3.74 , AMZNMKTPLACE,BALANCING ENTRY AMOUNT (34.06%),Resources Directorate,Administrative Equipment,F001,
http://opendatacommunities.org/id/london-borough-council/sutton,London Borough of Sutton,15/05/2019,1275722,1.83 , AMZNMKTPLACE,BALANCING ENTRY TAX (0%),Resources Directorate,Administrative Equipment,F001,
http://opendatacommunities.org/id/london-borough-council/sutton,London Borough of Sutton,23/05/2019,1275722,240.00 , DOCUSIGN INC. GBP,240.00 DOCUSIGN LICENCE,Resources Directorate,Administrative Equipment,F001,
http://opendatacommunities.org/id/london-borough-council/sutton,London Borough of Sutton,10/05/2019,1275722,47.45 , AMZNMKTPLACE AMAZON.CO,47.45 - 4114 9999 - AMAZON ARTLINE EKSC-4 SECURE MARKER,Resources Directorate,Provisions - General,F150,
http://opendatacommunities.org/id/london-borough-council/sutton,London Borough of Sutton,21/05/2019,1275722,153.31 , TRAINLINE,PURCHASE OF TRAIN TICKETS TO LEEDS,Resources Directorate,Travelling and Subsistence Allowances,A530,
http://opendatacommunities.org/id/london-borough-council/sutton,London Borough of Sutton,14/05/2019,1275722,42.15 , AMAZON.CO.UK MN4ML7X84,2X AWS IOT BUTTON  FOR THE IOT PROJECT.,Chief Executive's Directorate,General Office Expenses,F235,
http://opendatacommunities.org/id/london-borough-council/sutton,London Borough of Sutton,14/05/2019,1275722,85.50 , CHRISTINES FASH IN FLO,2 X BOUQUETS FOR MAYORESS AND DEPUTY MAYORESS - ANNUAL MAYOR MAKING 20.5.19,Resources Directorate,Materials - General,F100,
http://opendatacommunities.org/id/london-borough-council/sutton,London Borough of Sutton,02/05/2019,1275722,7.22 , AMZNMKTPLACE,EXPANDING FILE FOR MAYOR,Resources Directorate,Materials - General,F100,
http://opendatacommunities.org/id/london-borough-council/sutton,London Borough of Sutton,02/05/2019,1275722,4.99 , AMZNMKTPLACE AMAZON.CO,VISITORS BOOK FOR MAYOR'S PARLOUR,Resources Directorate,Materials - General,F100,
http://opendatacommunities.org/id/london-borough-council/sutton,London Borough of Sutton,02/05/2019,1275722,599.22 , MAJESTIC WINE,WINE FOR ANNUAL MAYOR MAKING 20.5.19,Resources Directorate,Hospitality (VAT not Recoverable),F325,
http://opendatacommunities.org/id/london-borough-council/sutton,London Borough of Sutton,08/05/2019,1275722,25.00 , OYSTER ONLINE,ORDER OF AN OYSTER CARD FOR CLLR WITH AUTO-TOP UP AND 5REFUNDABLE DEPOSIT,Resources Directorate,Members Expenses - Travel and Subsistence,F401,
http://opendatacommunities.org/id/london-borough-council/sutton,London Borough of Sutton,02/05/2019,1275722,40.00 , WWW.ICO.GOV.UK,ICO SUBSCRIPTION FOR CLLR,Resources Directorate,Subscriptions - General,F450,
http://opendatacommunities.org/id/london-borough-council/sutton,London Borough of Sutton,16/05/2019,1275722,11.46 , CAFFE NERO SUTTON CARS,CHILDREN IN CARE COUNCIL,Chief Executive's Directorate,Refreshments,F155,
http://opendatacommunities.org/id/london-borough-council/sutton,London Borough of Sutton,09/05/2019,1275722,15.10 , MARKS & SPENCER SSP,CHILDREN IN CARE COUNCIL,Chief Executive's Directorate,Refreshments,F155,
http://opendatacommunities.org/id/london-borough-council/sutton,London Borough of Sutton,09/05/2019,1275722,2.00 , WM MORRISONS STORE,,Chief Executive's Directorate,Refreshments,F155,
http://opendatacommunities.org/id/london-borough-council/sutton,London Borough of Sutton,01/05/2019,1275722,13.40 , MARKS&SPENCER PLC,CHILDREN IN CARE COUNCIL,Chief Executive's Directorate,Refreshments,F155,
http://opendatacommunities.org/id/london-borough-council/sutton,London Borough of Sutton,11/05/2019,1275722,69.80 , FACEBK KSUS6L2AL2,SPLIT - (41.88%),Chief Executive's Directorate,Printing - General,F215,
http://opendatacommunities.org/id/london-borough-council/sutton,London Borough of Sutton,11/05/2019,1275722,96.87 , FACEBK KSUS6L2AL2,SPLIT - (58.12%),Chief Executive's Directorate,Corporate Publicity,F356,
http://opendatacommunities.org/id/london-borough-council/sutton,London Borough of Sutton,26/05/2019,1275722,(300.00), PAYPAL  LGCOMMS2018,PAYPAL REFUND,Chief Executive's Directorate,Corporate Publicity,F356,
http://opendatacommunities.org/id/london-borough-council/sutton,London Borough of Sutton,17/05/2019,1275722,350.00 , GOOGLE  ADS9800860421,BALANCING ENTRY AMOUNT,Chief Executive's Directorate,Corporate Publicity,F356,
http://opendatacommunities.org/id/london-borough-council/sutton,London Borough of Sutton,17/05/2019,1275722,200.00 , FACEBK 5ZQZZMJAL2,FACEBOOK ADVERTISING,Chief Executive's Directorate,Corporate Publicity,F356,
http://opendatacommunities.org/id/london-borough-council/sutton,London Borough of Sutton,14/05/2019,1275722,200.00 , GOOGLE  ADS9800860421,BALANCING ENTRY AMOUNT,Chief Executive's Directorate,Corporate Publicity,F356,
http://opendatacommunities.org/id/london-borough-council/sutton,London Borough of Sutton,14/05/2019,1275722,46.43 , TRAINLINE,TRAIN TICKETS,Chief Executive's Directorate,Corporate Publicity,F356,
http://opendatacommunities.org/id/london-borough-council/sutton,London Borough of Sutton,15/05/2019,1275722,3.52 , MAILCHIMP    MONTHLY,WEB HOSTING,Resources Directorate,Fees - Computer Software,F384,
http://opendatacommunities.org/id/london-borough-council/sutton,London Borough of Sutton,26/04/2019,1275722,72.95 , WWW.ARGOS.CO.UK,PURCHASE FOR CRISIS LOAN AND GRANT SCHEME,Resources Directorate,Grants,F473,
http://opendatacommunities.org/id/london-borough-council/sutton,London Borough of Sutton,20/05/2019,1275722,239.99 , WWW.ARGOS.CO.UK,PURCHASE OF ELECTRIC COOKER FOR CRISIS GRANT,Resources Directorate,Grants,F473,
http://opendatacommunities.org/id/london-borough-council/sutton,London Borough of Sutton,16/05/2019,1275722,(80.00), WWW.ARGOS.CO.UK,REFUND OF COST OF FITTING ELECTRIC COOKER ON PREVIOUSLY ORDERED GOODS,Resources Directorate,Grants,F473,
http://opendatacommunities.org/id/london-borough-council/sutton,London Borough of Sutton,01/05/2019,1275722,239.99 , WWW.ARGOS.CO.UK,PURCHASE OF ELECTRIC COOKER FOR CRISIS GRANT,Resources Directorate,Grants,F473,
http://opendatacommunities.org/id/london-borough-council/sutton,London Borough of Sutton,01/05/2019,1275722,82.95 , WWW.ARGOS.CO.UK,PURCHASE OF SINGLE MATTRESS FOR CRISIS GRANT,Resources Directorate,Grants,F473,
http://opendatacommunities.org/id/london-borough-council/sutton,London Borough of Sutton,30/04/2019,1275722,309.98 , WWW.ARGOS.CO.UK,PURCHASE OF FRIDGE FREEZER & ELECTRIC COOKER FOR CRISIS GRANT,Resources Directorate,Grants,F473,
http://opendatacommunities.org/id/london-borough-council/sutton,London Borough of Sutton,29/04/2019,1275722,155.95 , WWW.ARGOS.CO.UK,PURCHASE OF SINGLE BED FOR CRISIS GRANT,Resources Directorate,Grants,F473,
http://opendatacommunities.org/id/london-borough-council/sutton,London Borough of Sutton,29/04/2019,1275722,70.00 , WWW.GOV.UK,PURCHASE OF PROBATE CERTIFICATES X 7,Resources Directorate,Fees - Other,F299,
http://opendatacommunities.org/id/london-borough-council/sutton,London Borough of Sutton,11/05/2019,1275722,40.00 , OYSTER AUTO-TOP UP,BENEFITS STAFF TRAVEL,Resources Directorate,Travelling and Subsistence Allowances,A530,
http://opendatacommunities.org/id/london-borough-council/sutton,London Borough of Sutton,09/05/2019,1275722,40.00 , OYSTER AUTO-TOP UP,BENEFITS STAFF TRAVEL,Resources Directorate,Travelling and Subsistence Allowances,A530,
http://opendatacommunities.org/id/london-borough-council/sutton,London Borough of Sutton,10/05/2019,1275722,33.00 , LBSUTTON MOTO,3 X DEATH CERTIFICATE FOR LEGAL CASE,Resources Directorate,General Office Expenses,F235,
http://opendatacommunities.org/id/london-borough-council/sutton,London Borough of Sutton,08/05/2019,1275722,80.00 , PREMIER INN,BOOKING OF PREMIER INN  ATTENDANCE AT CIPFA CONFERENCE ON 9TH JULY 2019,Resources Directorate,Hotel Accomodation,A512,
http://opendatacommunities.org/id/london-borough-council/sutton,London Borough of Sutton,29/04/2019,1275722,51.64 , AMZNMKTPLACE,51.64 - F235 6405 9999 - AMAZON NOTICE BOARDS .PNG,Peoples Services Directorate,General Office Expenses,F235,
http://opendatacommunities.org/id/london-borough-council/sutton,London Borough of Sutton,14/05/2019,1275722,204.50 , WWW.CORERFID.COM,STATIONARY MATERIALS,Peoples Services Directorate,Other-Materials,F115,
